bitfinex-derivatives/quotes_ETHF0:USTF0_20240905
["timestamp","ask_amount","ask_price","bid_price","bid_amount"]
[1725564106823,4.2264,2365.9,2365.8,0.00633647]
[1725564107122,4.2264,2365.9,275.78,8.92810881]
[1725564107123,0.42295,2364.7,2364.5,0.00355011]
[1725564107324,0.42295,2364.7,2363.3,4.146]
[1725564107325,3.63076,2364.6,2363.5,0.3598]
[1725564107626,3.2078,2364.0,2363.7,0.42311]
[1725564107821,3.2078,2364.0,2363.4,0.42317]
[1725564108029,3.2078,2363.6,2363.0,3.2078]
[1725564108228,3.2078,2363.2,2362.6,3.2078]
[1725564108420,4.56,2363.4,2362.9,0.42325]
[1725564108727,4.56,2363.4,2363.1,0.42322]
[1725564108921,3.21413647,2363.5,2363.2,0.4232]
[1725564109526,3.21413647,2363.5,2362.8,3.2078]
[1725564109527,4.2312,2363.4,2362.8,3.2078]
[1725564109729,4.66028071,2363.4,2362.5,3.2078]
[1725564109919,3.21413647,2363.5,2362.9,0.42326]
[1725564110229,4.60058299,2363.4,2362.5,3.2078]
[1725564110428,4.60058299,2363.4,2362.9,0.42326]
[1725564110723,3.21413647,2363.5,2362.7,3.2078]
[1725564110926,0.00633647,2363.5,2362.7,3.2078]
[1725564111117,3.4198,2364.2,2364.1,0.42305]
[1725564111320,3.2078,2365.2,2364.1,6.0]
[1725564111625,3.2078,2365.2,2364.3,3.2078]
[1725564111827,3.2078,2364.8,2363.7,0.3786]
[1725564112121,1.05701,2365.5,2363.7,0.3786]
[1725564112122,3.2078,2364.2,2363.7,0.3786]
[1725564112332,3.2078,2363.9,2363.3,0.42318]
[1725564112517,0.42305,2364.2,2363.7,0.00633647]
[1725564112518,3.2078,2363.8,2363.7,0.00633647]
[1725564112718,12.22982764,2363.8,2362.8,0.42328]
[1725564112919,3.2078,2363.5,2362.8,0.42328]
[1725564113119,3.2078,2363.5,2362.9,0.42327]
[1725564113321,4.59464059,2363.4,2362.7,3.2078]
[1725564113520,3.2078,2363.6,2362.7,3.2078]
[1725564113818,3.2078,2363.0,2362.4,3.5984]
[1725564114023,4.56,2362.6,2361.3,3.2078]
[1725564114223,3.21415001,2362.2,2361.3,3.2078]
[1725564114423,3.2078,2361.9,2361.3,3.2078]
[1725564114617,3.2078,2361.9,2361.4,0.42353]
[1725564115020,3.2078,2361.9,2361.3,3.2078]
[1725564115423,3.2078,2361.9,2361.4,0.42353]
[1725564115832,3.2078,2361.9,2361.0,3.2078]
[1725564116132,8.16234801,2361.8,2360.9,0.42362]
[1725564116317,8.16234801,2361.8,2360.9,0.42361]
[1725564116318,4.53108801,2361.8,2360.9,0.42361]
[1725564116626,3.2078,2362.0,2361.4,3.2078]
[1725564116818,0.00635001,2362.2,2361.9,3.2078]
[1725564117021,0.00635001,2362.2,2362.1,0.42341]
[1725564117223,3.2078,2362.7,2362.2,0.42339]
[1725564117421,4.56,2363.0,2361.4,3.2078]
[1725564117422,3.2078,2362.4,2361.4,3.2078]
[1725564117620,3.2078,2362.4,2361.0,4.56]
[1725564117621,3.2078,2362.4,2361.5,3.2078]
[1725564117822,3.2078,2362.1,2361.6,0.42349]
[1725564118024,7.7678,2362.2,2361.1,3.2078]
[1725564118224,3.2078,2361.7,2361.4,0.00635001]
[1725564118533,0.00635001,2361.9,2361.4,0.00635001]
[1725564118722,3.2078,2361.6,2361.4,0.00635001]
[1725564119125,4.2344,2361.5,2361.4,0.00635001]
[1725564119429,4.91162018,2361.5,2361.4,0.00635001]
[1725564119624,4.2344,2361.5,2361.4,0.00635001]
[1725564120328,3.21415001,2361.9,2361.4,10.24075001]
[1725564120631,3.21415001,2361.9,2361.4,0.00635001]
[1725564120837,0.00635001,2361.9,2361.5,0.42351]
[1725564121230,0.00635001,2361.9,2361.4,0.00635001]
[1725564121427,0.00635001,2361.9,2361.7,3.2078]
[1725564121723,0.00635001,2361.9,2361.4,0.00635001]
[1725564121930,5.2154036,2361.8,2361.4,0.00635001]
[1725564122125,4.7919336,2361.8,2361.4,0.00635001]
[1725564122333,0.00635001,2361.9,2361.8,0.42346]
[1725564122630,3.2078,2362.3,2362.2,0.42339]
[1725564122834,1.24357,2363.4,2362.2,0.42339]
[1725564122835,3.2078,2362.6,2362.3,0.42337]
[1725564123034,3.2078,2362.6,2361.9,0.381]
[1725564123537,3.2078,2362.6,2362.1,3.2078]
[1725564123538,0.00635001,2362.5,2362.1,3.2078]
[1725564123830,0.00635001,2362.5,2362.4,0.42336]
[1725564124034,3.2078,2362.6,2362.5,0.42334]
[1725564124237,2.59907695,2362.6,2362.2,3.2078]
[1725564124428,7.7678,2362.6,2362.0,0.00635001]
[1725564124941,3.2078,2362.1,2362.0,0.00635001]
[1725564125142,0.00635001,2362.5,2362.0,0.00635001]
[1725564125637,0.00635001,2362.5,2362.1,3.63121]
[1725564125839,0.00635001,2362.5,2362.0,0.00635001]
[1725564126040,0.00635001,2362.5,2362.2,0.42338]
[1725564126241,0.00635001,2362.5,2362.3,4.2328]
[1725564126533,0.00635001,2362.5,2362.4,7.86396]
[1725564126733,0.00635001,2362.5,2362.4,9.63116]
[1725564127037,0.212,2363.5,2363.0,0.42325]
[1725564127241,0.4212,2364.5,2363.4,0.42316]
[1725564127242,4.56,2364.2,2363.4,0.42316]
[1725564127443,3.63083,2364.3,2363.4,0.42316]
[1725564127638,7.64187998,2364.3,2363.6,0.42312]
[1725564127933,3.2078,2364.0,2363.7,0.00635001]
[1725564128141,0.00635001,2364.2,2363.7,0.00635001]
[1725564128339,0.00635001,2364.2,2363.8,4.2304]
[1725564128543,0.00635001,2364.2,2364.1,0.42305]
[1725564129045,3.2078,2365.2,2364.1,4.2296]
[1725564129236,3.2078,2365.2,2364.0,3.2078]
[1725564129237,3.2078,2365.2,2364.7,0.42294]
[1725564129540,3.2078,2365.2,2364.0,3.5871]
[1725564129541,3.2078,2365.2,2364.8,0.42293]
[1725564129734,0.42281,2365.5,2364.3,3.2078]
[1725564129735,3.2078,2365.5,2364.3,3.2078]
[1725564129933,3.2078,2365.9,2364.5,1.05746]
[1725564130241,3.2078,2365.9,2365.5,0.4228]
[1725564130546,0.00635001,2365.9,2365.2,4.26494]
[1725564130749,0.00635001,2365.9,2365.8,0.42274]
[1725564130938,0.00635001,2365.9,2365.8,6.42274]
[1725564131145,0.00635001,2365.9,2365.8,10.64994]
[1725564131535,0.42259,2366.8,2366.1,0.42269]
[1725564131735,3.2078,2366.4,2366.1,0.42269]
[1725564131939,3.2078,2366.7,2366.2,0.42267]
[1725564132343,3.2078,2366.7,2366.1,0.42269]
[1725564132644,0.0040362,2366.6,2366.2,0.00635001]
[1725564132849,3.2078,2366.4,2366.2,0.00635001]
[1725564133060,7.7678,2366.4,2366.2,0.00635001]
[1725564133345,3.63045,2366.4,2366.2,0.00635001]
[1725564133553,3.2078,2366.4,2366.2,0.00635001]
[1725564133939,0.0040362,2366.6,2366.4,0.42264]
[1725564134153,0.0040362,2366.6,2366.2,4.23275001]
[1725564134154,0.0040362,2366.6,2366.3,0.42265]
[1725564134443,0.0040362,2366.6,2366.2,0.00635001]
[1725564134755,0.0040362,2366.6,2366.3,0.42265]
[1725564135240,0.0040362,2366.6,2366.3,4.2256]
[1725564135446,3.2118362,2366.6,2366.2,0.42903001]
[1725564135641,3.63043,2366.5,2366.2,0.00635001]
[1725564135838,3.2118362,2366.6,2366.2,0.00635001]
[1725564136148,0.42273,2366.0,2365.1,0.7775]
[1725564136348,3.2078,2366.0,2365.1,0.3901]
[1725564136538,3.2078,2366.0,2365.2,0.42286]
[1725564136855,3.2078,2365.7,2365.0,0.3849]
[1725564137148,3.2078,2365.7,2365.1,0.00635001]
[1725564137453,3.2078,2365.3,2365.1,0.00635001]
[1725564138044,5.6168,2366.0,2365.1,0.00635001]
[1725564138045,3.63063,2365.4,2365.1,0.00635001]
[1725564138444,3.2078,2365.4,2365.1,0.00635001]
[1725564138649,1.05663,2366.4,2365.6,0.42278]
[1725564138650,3.2078,2365.7,2365.6,0.42278]
[1725564138947,3.2078,2366.4,2365.6,6.0]
[1725564139137,3.2078,2366.4,2366.2,0.42267]
[1725564139341,3.2078,2366.4,2365.5,3.932]
[1725564139556,3.2078,2366.4,2365.6,3.2078]
[1725564139747,3.2078,2366.4,2366.2,0.42267]
[1725564139945,0.0040362,2366.6,2366.5,0.42262]
[1725564140345,0.0040362,2366.6,2366.5,4.2256]
[1725564140650,0.0040362,2366.6,2366.5,10.64822]
[1725564142042,3.2078,2367.2,2367.1,0.42252]
[1725564143147,3.2078,2367.2,2366.8,0.42256]
[1725564143348,3.2078,2367.2,2366.5,0.7489]
[1725564143545,3.63031,2367.2,2366.7,0.42258]
[1725564143854,3.2078,2367.2,2366.5,0.3621]
[1725564144053,3.6303,2367.2,2366.7,0.42257]
[1725564144239,3.2078,2366.9,2366.5,0.3621]
[1725564144443,3.2078,2366.9,2366.2,3.2078]
[1725564144747,0.42257,2366.9,2366.4,0.42263]
[1725564144954,3.2078,2366.7,2366.4,0.42263]
[1725564145252,3.2078,2366.7,2365.8,3.5846]
[1725564145457,1.0563,2367.1,2365.8,3.5846]
[1725564145458,0.42264,2366.4,2365.8,3.5846]
[1725564145749,3.2078,2366.7,2366.0,0.4227]
[1725564145951,3.63044,2366.4,2365.8,0.3768]
[1725564146154,0.42269,2366.2,2365.7,0.42276]
[1725564146352,3.2078,2366.1,2365.2,4.26493]
[1725564146651,3.2078,2366.1,2365.8,0.42275]
[1725564146851,3.2078,2366.1,2365.6,0.42278]
[1725564147061,3.21415001,2366.1,2365.7,0.42277]
[1725564147249,3.21415001,2366.1,2365.6,0.00635001]
[1725564147557,0.00635001,2366.1,2366.0,0.42271]
[1725564148047,0.00635001,2366.1,2366.0,10.64911]
[1725564148248,0.00635001,2366.1,2366.0,11.7059]
[1725564148751,3.2078,2367.1,2366.9,0.42255]
[1725564148959,3.2078,2367.1,2366.4,1.05661]
[1725564148960,3.83407,2367.4,2367.0,0.42253]
[1725564149148,3.4116,2367.4,2366.7,3.2078]
[1725564149345,0.42267,2366.3,2365.9,0.42272]
[1725564149550,0.42267,2366.3,2365.6,3.2078]
[1725564149551,3.2078,2366.3,2366.1,0.42269]
[1725564149848,3.2078,2366.3,2365.6,3.2078]
[1725564149849,3.21415001,2366.3,2365.9,0.00635001]
[1725564150062,3.2078,2366.0,2365.9,0.00635001]
[1725564150461,3.21415001,2366.3,2365.9,0.00635001]
[1725564150757,3.21415001,2366.3,2365.9,0.42908001]
[1725564150953,0.42902001,2366.3,2366.0,0.42271]
[1725564151157,0.42902001,2366.3,2365.9,0.00635001]
[1725564151158,0.00635001,2366.3,2365.9,0.00635001]
[1725564151660,0.00635001,2366.3,2366.2,0.42268]
[1725564152162,0.00635001,2366.3,2366.2,4.64908]
[1725564152346,0.00635001,2366.3,2366.2,11.70578]
[1725564153056,0.00635001,2366.3,2366.2,12.76248]
[1725564153057,1e-08,2366.3,2366.2,12.76248]
[1725564153259,1e-08,2366.3,2366.2,13.13418]
[1725564153757,1e-08,2366.3,2366.2,11.02078]
[1725564153952,1e-08,2366.3,2366.2,5.02078]
[1725564154151,1e-08,2366.3,2366.2,4.64908]
[1725564154959,1e-08,2366.3,2366.2,11.70578]
[1725564155353,1e-08,2366.3,2366.2,15.97028]
[1725564155857,1e-08,2366.3,2366.2,0.42268]
[1725564156355,1e-08,2366.3,2366.2,10.64908]
[1725564156546,1e-08,2366.3,2366.2,15.97028]
[1725564156750,1e-08,2366.3,2366.2,11.70578]
[1725564156952,1e-08,2366.3,2366.2,5.70578]
[1725564157152,1e-08,2366.3,2366.2,15.97028]
[1725564157456,1e-08,2366.3,2366.2,18.08368]
[1725564157658,3.2078,2367.3,2367.2,0.4225]
[1725564158158,7.4318,2367.3,2366.5,3.2078]
[1725564158357,3.2078,2367.0,2366.1,1.05672]
[1725564158552,3.2078,2366.7,2366.0,1.05679]
[1725564158753,4.26413,2367.1,2366.0,1.05679]
[1725564158951,3.2078,2367.1,2366.1,3.2078]
[1725564159154,3.2078,2367.1,2367.0,0.42253]
[1725564159354,3.2078,2367.4,2366.3,1.05665]
[1725564159552,3.2078,2367.1,2366.4,1.05661]
[1725564159862,3.2078,2367.1,2366.9,0.42254]
[1725564160059,0.42249,2367.3,2367.0,0.42253]
[1725564160261,3.2078,2367.4,2366.7,1.05645]
[1725564160562,3.2078,2367.1,2367.0,0.42252]
[1725564160855,0.42255,2366.9,2366.8,0.00633647]
[1725564161158,1.47894,2366.9,2366.8,0.00633647]
[1725564161355,11.70374,2366.9,2366.8,0.00633647]
[1725564161658,11.28748131,2366.9,2365.3,4.26487]
[1725564161854,3.2078,2366.5,2366.4,0.42263]
[1725564162055,3.2078,2366.8,2366.6,0.4226]
[1725564162862,3.2078,2366.8,2366.7,0.42259]
[1725564163458,5.61614,2367.5,2366.7,0.42259]
[1725564163459,3.2078,2367.8,2366.8,5.28122]
[1725564163661,3.63022,2367.7,2366.8,1.05642]
[1725564163959,3.2078,2367.7,2367.4,0.42246]
[1725564164158,3.2078,2368.0,2367.6,0.42242]
[1725564164350,3.2078,2368.0,2367.0,1.05634]
[1725564164659,3.2078,2368.0,2367.5,0.42244]
[1725564164851,3.2078,2368.0,2367.6,0.42243]
[1725564165256,3.2078,2368.0,2366.9,3.2078]
[1725564165257,3.2078,2367.9,2366.9,3.2078]
[1725564165455,0.42243,2367.6,2367.0,0.42252]
[1725564165653,3.2078,2368.0,2366.6,5.2879]
[1725564165964,3.2078,2368.2,2367.4,0.42245]
[1725564166160,0.5725,2368.3,2367.8,0.42238]
[1725564166360,3.63014,2368.1,2367.8,0.00633647]
[1725564166566,0.5725,2368.3,2367.8,0.00633647]
[1725564166567,3.2078,2368.0,2367.8,0.00633647]
[1725564167157,3.7803,2368.3,2367.9,0.42236]
[1725564167358,3.5766,2368.3,2367.8,0.42872647]
[1725564167552,3.5766,2368.3,2367.8,0.00633647]
[1725564168562,3.5766,2368.3,2367.9,0.42237]
[1725564169062,3.5766,2368.3,2367.8,0.00633647]
[1725564169259,3.9989,2368.3,2367.8,0.00633647]
[1725564169452,3.9989,2368.3,2367.8,0.42872647]
[1725564169453,3.5766,2368.3,2367.8,0.42872647]
[1725564169963,3.5766,2368.3,2367.9,0.42237]
[1725564170166,3.2078,2368.3,2367.9,0.42237]
[1725564172365,3.62999,2369.0,2368.4,0.42228]
[1725564172566,3.62999,2369.0,2368.1,3.2078]
[1725564172762,3.2078,2369.0,2368.5,0.42226]
[1725564173063,3.2078,2369.2,2369.0,0.42218]
[1725564173268,3.2078,2369.5,2368.9,0.00633647]
[1725564173462,0.204,2369.6,2368.9,0.42851647]
[1725564173463,3.2078,2369.2,2368.9,0.42851647]
[1725564173662,3.6299,2369.5,2369.0,0.42217]
[1725564173962,3.6299,2369.5,2368.9,0.00633647]
[1725564173963,3.2078,2369.2,2368.9,0.00633647]
[1725564175371,3.2078,2369.2,2369.0,0.42217]
[1725564175570,3.2078,2369.5,2368.9,0.00633647]
[1725564175764,3.2078,2369.5,2369.2,0.42214]
[1725564175966,3.2078,2369.5,2369.3,0.42211]
[1725564176166,3.2078,2369.5,2368.9,0.00633647]
[1725564176670,3.2078,2370.1,2369.1,1.05541]
[1725564176966,1.05486,2370.4,2368.9,4.56633647]
[1725564176967,0.42205,2369.8,2368.9,4.56633647]
[1725564177164,0.42205,2369.8,2369.4,0.4221]
[1725564177361,3.2078,2369.6,2369.2,0.42213]
[1725564177563,3.2078,2369.3,2368.9,0.00633647]
[1725564177764,3.2078,2369.2,2368.9,0.42852647]
[1725564178359,3.2078,2369.5,2368.9,0.00633647]
[1725564178563,3.6299,2369.5,2369.1,0.42215]
[1725564178763,3.6299,2369.5,2368.9,0.00633647]
[1725564179063,3.62993,2369.3,2369.0,0.42217]
[1725564179268,1.05526,2369.5,2368.9,0.00633647]
[1725564179470,3.62995,2369.2,2368.9,0.42852647]
[1725564179961,3.2078,2369.2,2368.9,0.00633647]
[1725564180178,3.62995,2369.2,2368.9,0.42852647]
[1725564180683,3.2078,2369.4,2368.9,0.42852647]
[1725564180878,3.2078,2369.1,2368.9,0.42852647]
[1725564181080,0.42212,2369.4,2369.2,0.42214]
[1725564181384,3.2078,2369.5,2369.4,0.42211]
[1725564181587,3.2078,2369.5,2368.9,0.00633647]
[1725564181879,3.2078,2369.2,2368.9,0.00633647]
[1725564182888,3.2078,2369.5,2368.9,0.00633647]
[1725564183185,3.2078,2369.5,2369.1,0.42215]
[1725564183186,0.42211,2369.4,2369.1,0.42215]
[1725564183391,3.6299,2369.5,2369.2,0.42214]
[1725564183578,3.2078,2369.5,2368.9,0.00633647]
[1725564183773,0.42218,2369.0,2368.9,0.00633647]
[1725564184177,0.42218,2369.0,2367.8,0.3684]
[1725564184178,4.2216,2369.0,2367.8,0.3684]
[1725564184383,3.2078,2369.1,2368.0,3.2078]
[1725564184585,1.25901,2369.6,2368.0,3.2078]
[1725564184586,3.2078,2369.5,2368.6,1.05563]
[1725564184780,3.2078,2369.5,2369.1,0.42215]
[1725564184987,3.2078,2369.5,2368.6,1.05563]
[1725564185279,4.6853,2369.2,2369.1,0.00633647]
[1725564185581,3.62994,2369.2,2369.1,0.00633647]
[1725564185780,7.85074,2369.2,2369.1,0.00633647]
[1725564186681,7.4286,2369.2,2369.1,0.00633647]
[1725564187277,7.85074,2369.2,2369.1,0.00633647]
[1725564187687,3.62994,2369.2,2369.1,0.00633647]
[1725564187880,7.85074,2369.2,2369.1,0.00633647]
[1725564189477,3.2078,2369.2,2369.1,0.42849647]
[1725564191188,0.00633647,2369.5,2369.4,0.42211]
[1725564192484,0.00633647,2369.5,2369.4,2.53265]
[1725564192689,0.00633647,2369.5,2369.4,6.75265]
[1725564192879,0.00633647,2369.5,2369.4,12.75265]
[1725564193079,1.42802,2370.7,2370.4,0.42192]
[1725564193080,0.3707,2370.6,2370.4,0.42192]
[1725564193282,0.3707,2370.6,2370.5,0.42191]
[1725564193980,3.2078,2370.7,2370.6,0.42189]
[1725564194288,3.2078,2370.7,2370.5,0.4219]
[1725564194493,3.2078,2370.7,2370.6,0.42189]
[1725564195591,3.2078,2370.7,2370.5,0.4219]
[1725564195791,3.2078,2370.7,2370.3,0.00633647]
[1725564195792,0.42193,2370.4,2370.3,0.00633647]
[1725564195993,0.42193,2370.4,2369.2,1.05535]
[1725564195994,1.05487,2370.3,2369.2,1.05535]
[1725564196192,3.2078,2370.0,2369.5,0.42207]
[1725564196392,1.42407,2370.3,2369.1,3.2078]
[1725564196393,3.2078,2369.7,2369.1,1.05541]
[1725564196589,3.2078,2369.7,2369.0,0.3641]
[1725564196789,0.42209,2369.5,2369.3,0.42212]
[1725564196989,3.2078,2369.5,2369.3,0.42212]
[1725564197194,0.00633647,2369.6,2369.2,0.00633647]
[1725564197496,0.00633647,2369.6,2369.5,0.42209]
[1725564198197,0.42212,2369.3,2369.2,0.00633647]
[1725564198387,3.2078,2369.3,2368.5,1.05567]
[1725564198590,3.2078,2369.3,2368.6,1.05563]
[1725564198788,3.2078,2369.3,2368.9,0.42219]
[1725564198789,0.42215,2369.2,2368.9,0.42219]
[1725564198989,0.42215,2369.2,2368.4,0.3696]
[1725564198990,3.2078,2369.3,2369.0,0.42217]
[1725564199993,3.2078,2369.3,2368.9,0.00633647]
[1725564199994,3.2078,2369.3,2369.2,0.42214]
[1725564200191,3.21413647,2369.6,2369.0,1.05545]
[1725564200493,3.2078,2369.3,2368.9,0.00633647]
[1725564200693,3.2078,2369.3,2369.0,0.42218]
[1725564200895,3.2078,2369.3,2368.9,0.00633647]
[1725564201097,3.2078,2369.5,2368.9,0.00633647]
[1725564201394,3.62993,2369.3,2368.9,0.00633647]
[1725564201585,3.2078,2369.0,2368.9,0.00633647]
[1725564201789,3.62998,2369.0,2368.9,0.00633647]
[1725564201984,7.85158,2369.0,2368.9,0.00633647]
[1725564202190,18.22046231,2369.0,2368.1,0.3763]
[1725564202390,3.2078,2368.7,2368.6,0.42224]
[1725564202887,0.3634,2369.3,2368.2,1.05581]
[1725564202888,3.2078,2369.0,2368.2,1.05581]
[1725564203093,3.2078,2368.7,2368.2,1.05581]
[1725564203295,3.2078,2368.7,2368.2,0.00633647]
[1725564203296,3.63003,2368.7,2368.2,0.00633647]
[1725564203497,3.2078,2368.7,2368.2,0.00633647]
[1725564203701,3.2078,2368.7,2368.5,0.42226]
[1725564204296,3.2078,2368.7,2368.2,0.00633647]
[1725564204297,0.4222,2368.9,2368.6,0.42225]
[1725564204500,0.4222,2368.9,2368.7,0.42223]
[1725564204694,3.5712,2369.3,2368.3,4.56]
[1725564204894,3.5712,2369.3,2368.5,1.05567]
[1725564205094,3.5712,2369.3,2369.2,0.42214]
[1725564205296,3.2078,2369.3,2369.2,0.42214]
[1725564208000,0.42219,2369.0,2368.7,0.42223]
[1725564208204,7.4286,2369.3,2368.4,1.43019]
[1725564208205,3.2078,2369.1,2368.4,1.43019]
[1725564208496,3.2078,2369.1,2368.9,0.42219]
[1725564208698,3.62997,2369.1,2368.8,0.4222]
[1725564209091,3.2078,2369.1,2368.9,0.42219]
[1725564209504,3.62997,2369.1,2368.8,0.4222]
[1725564209798,0.42218,2369.0,2368.8,0.4222]
[1725564209997,3.2078,2369.1,2368.8,0.4222]
[1725564209998,3.62997,2369.1,2368.8,0.4222]
[1725564210199,3.2078,2369.1,2369.0,0.42218]
[1725564210404,0.00633647,2369.6,2369.3,0.42212]
[1725564210405,3.2078,2369.4,2369.3,0.42212]
[1725564210602,3.2078,2369.4,2368.4,0.3745]
[1725564210908,0.42229,2368.4,2368.2,0.00633647]
[1725564211100,7.4302,2368.3,2368.2,0.00633647]
[1725564211301,3.2078,2368.5,2368.2,0.00633647]
[1725564211503,3.2078,2368.8,2368.5,0.42226]
[1725564211702,3.63001,2368.8,2368.4,0.42227]
[1725564211896,3.2078,2368.5,2368.4,0.42227]
[1725564212099,3.2078,2368.5,2368.3,0.42229]
[1725564212299,3.2078,2368.5,2368.2,0.00633647]
[1725564212300,3.2078,2368.5,2368.4,0.42228]
[1725564212609,3.2078,2368.7,2368.4,0.42228]
[1725564213103,3.2078,2368.7,2368.2,0.00633647]
[1725564213304,0.3791,2368.9,2368.2,0.00633647]
[1725564213305,3.2078,2368.4,2368.2,0.00633647]
[1725564213501,0.4223,2368.3,2368.2,0.00633647]
[1725564213800,4.6447,2368.3,2368.2,0.00633647]
[1725564214000,10.6447,2368.3,2368.2,0.00633647]
[1725564214998,4.6447,2368.3,2368.2,0.00633647]
[1725564215593,10.6447,2368.3,2368.2,0.00633647]
[1725564215795,14.75612469,2368.3,2367.4,0.3732]
[1725564216008,3.2078,2368.1,2367.8,0.42238]
[1725564216502,3.2078,2368.1,2367.4,0.3732]
[1725564216702,3.2078,2368.1,2367.8,0.42238]
[1725564217608,3.21413647,2368.2,2367.9,0.42236]
[1725564217793,3.21413647,2368.2,2367.7,0.00633647]
[1725564218001,3.21413647,2368.2,2367.9,0.42236]
[1725564218502,3.21413647,2368.2,2367.8,0.42238]
[1725564218896,3.21413647,2368.2,2367.9,0.42236]
[1725564219299,3.21413647,2368.2,2368.1,0.42234]
[1725564219500,0.00633647,2368.2,2368.1,0.42234]
[1725564219801,0.00633647,2368.2,2368.1,4.64474]
[1725564220102,0.00633647,2368.2,2368.1,0.42234]
[1725564220299,0.00633647,2368.2,2368.1,4.64474]
[1725564220695,0.00633647,2368.2,2367.9,0.3835]
[1725564220908,3.2078,2368.1,2367.9,0.3835]
[1725564221808,0.00633647,2368.2,2367.9,0.3835]
[1725564222007,3.2078,2368.0,2367.9,0.3835]
[1725564222605,0.00633647,2368.2,2367.9,0.3835]
[1725564223507,0.00633647,2368.2,2367.9,0.80587]
[1725564224006,0.00633647,2368.2,2367.9,0.3835]
[1725564224710,3.2078,2368.0,2367.9,0.3835]
[1725564225498,0.00633647,2368.2,2367.9,0.3835]
[1725564225705,3.63014,2368.1,2367.9,0.3835]
[1725564225905,0.42236,2368.0,2367.9,0.3835]
[1725564226112,0.42236,2368.0,2367.7,0.00633647]
[1725564226113,4.64557,2368.0,2367.7,0.00633647]
[1725564226303,3.2078,2367.8,2367.7,0.00633647]
[1725564226611,3.2078,2368.1,2367.7,0.42874647]
[1725564226815,0.00633647,2368.2,2367.7,0.00633647]
[1725564227113,0.00633647,2368.2,2368.1,0.42234]
[1725564227296,0.00633647,2368.2,2368.0,0.42235]
[1725564227497,3.21413647,2368.2,2367.8,0.42239]
[1725564227702,3.63645647,2368.2,2367.8,0.42239]
[1725564227904,3.21413647,2368.2,2367.8,0.42239]
[1725564228310,0.42236,2368.0,2367.7,0.00633647]
[1725564228605,3.2078,2367.9,2367.7,0.00633647]
[1725564228999,0.42239,2367.8,2367.7,0.00633647]
[1725564229306,0.42239,2367.8,2366.5,0.42262]
[1725564229307,0.42255,2367.0,2366.5,0.42262]
[1725564229510,3.2078,2366.6,2366.5,0.42262]
[1725564229704,3.2078,2366.9,2366.5,0.42262]
[1725564230203,3.2078,2366.9,2366.6,0.4226]
[1725564230410,3.21413647,2366.9,2366.6,0.4226]
[1725564230611,3.21413647,2366.9,2366.5,0.00633647]
[1725564231109,3.21413647,2366.9,2366.8,0.42257]
[1725564231599,3.21413647,2366.9,2366.8,4.64737]
[1725564232308,0.00633647,2366.9,2366.8,4.64737]
[1725564233105,0.00633647,2366.9,2366.8,10.64737]
[1725564234010,3.2078,2367.2,2367.1,0.42252]
[1725564234205,3.2078,2367.5,2367.1,6.0]
[1725564234512,3.2078,2367.5,2366.7,1.05646]
[1725564234513,0.42255,2367.0,2366.5,0.42894647]
[1725564234705,3.2078,2366.7,2366.5,0.00633647]
[1725564235018,0.42261,2366.6,2366.5,0.00633647]
[1725564235308,4.2256,2366.6,2366.5,0.00633647]
[1725564236104,4.64821,2366.6,2366.5,0.00633647]
[1725564237009,4.2256,2366.6,2366.5,0.00633647]
[1725564238311,4.2256,2366.6,2366.2,0.42267]
[1725564238312,1.05663,2366.4,2365.6,0.42278]
[1725564238504,0.42281,2365.5,2365.1,0.3904]
[1725564238712,3.2078,2365.4,2365.1,0.3904]
[1725564239110,3.2078,2365.4,2365.2,0.42285]
[1725564239305,3.2078,2365.4,2365.1,0.39673647]
[1725564239709,3.2078,2365.4,2365.1,0.81959647]
[1725564239919,0.00633647,2365.5,2365.2,0.42286]
[1725564240310,0.00633647,2365.5,2365.1,0.39673647]
[1725564240512,3.2078,2365.4,2365.1,0.39673647]
[1725564241008,3.2078,2365.4,2365.1,0.81959647]
[1725564241209,3.2078,2365.4,2365.1,0.39673647]
[1725564241404,0.00633647,2365.5,2365.1,0.39673647]
[1725564241608,0.00633647,2365.5,2365.4,0.42282]
[1725564242417,3.2078,2365.7,2365.6,0.42278]
[1725564242611,3.2078,2366.2,2366.0,0.4227]
[1725564242811,3.2078,2366.2,2366.1,0.42269]
[1725564243006,3.5805,2366.5,2365.7,1.05689]
[1725564243220,3.5805,2366.5,2366.3,0.42266]
[1725564243409,0.00633647,2366.3,2366.2,0.42267]
[1725564244006,3.2078,2366.8,2366.7,0.42259]
[1725564244618,3.2078,2366.8,2366.3,1.05662]
[1725564244619,3.2078,2367.1,2367.0,0.42252]
[1725564245115,0.00633647,2367.3,2367.2,0.4225]
[1725564245305,0.00633647,2367.3,2366.8,0.00633647]
[1725564245512,0.00633647,2367.3,2367.1,0.4225]
[1725564245711,0.00633647,2367.3,2367.2,0.4225]
[1725564246414,0.00633647,2367.3,2366.9,0.7316]
[1725564246613,0.00633647,2367.3,2367.2,0.4225]
[1725564247112,3.2078,2367.8,2367.7,0.42241]
[1725564248016,3.2078,2367.8,2366.9,1.112]
[1725564248017,13.431,2367.8,2366.9,1.112]
[1725564248210,3.2078,2367.4,2366.9,1.112]
[1725564248413,3.2078,2367.4,2367.0,0.42253]
[1725564248615,3.2078,2367.4,2367.2,0.42249]
[1725564248918,3.2078,2367.4,2367.3,0.42248]
[1725564249312,3.2078,2367.4,2367.3,4.64648]
[1725564249617,0.00633647,2367.6,2367.5,0.42244]
[1725564250513,0.00633647,2367.6,2367.1,3.2078]
[1725564250514,0.00633647,2367.6,2367.4,0.42245]
[1725564250913,0.00633647,2367.6,2367.5,0.42244]
[1725564251117,0.00633647,2367.6,2367.1,3.2078]
[1725564251310,0.00633647,2367.6,2367.0,0.3685]
[1725564251311,3.2078,2367.4,2367.0,0.3685]
[1725564251510,0.00633647,2367.6,2367.0,0.3685]